[Event "BL 2024-25"]
[Site "Austria"]
[Date "2024.10.09"]
[Round "1.19"]
[White "Gupta, Abhijeet"]
[Black "Pechac, Jergus"]
[Result "1/2-1/2"]
[ECO "D41"]
[WhiteElo "2573"]
[BlackElo "2582"]
[Annotator "TA"]
[PlyCount "178"]
[EventDate "2024.08.28"]
[EventType "team-tourn"]
[EventCountry "AUT"]
[SourceTitle "playchess.com"]
[Source "ChessBase"]
[SourceQuality "1"]
[WhiteTeam "Wien-St Veit"]
[BlackTeam "Mistelbach"]
[TimeControl "40/5400+30:1800+30"]

{[%evp 100,178,8,8,62,55,56,31,55,45,66,61,70,66,66,61,61,61,61,40,70,70,70,70,70,70,70,70,70,70,70,70,70,70,70,70,70,70,70,70,70,70,70,69,70,69,69,69,70,69,69,69,69,69,69,69,69,60,60,8,8,0,0,0,0,0,0,0,0,0,0,0,0,0,0,0,0,0,0,0,0]} 1. d4 {[%emt 0:00:06]} Nf6 {[%emt 0:00:08]} 2. Nf3 {[%emt 0:00:54]} d5 {[%emt 0:00:08]} 3. c4 {[%emt 0:00:22]} e6 {[%emt 0:00:06]} 4. Nc3 {[%emt 0:00:08]} c5 {[%emt 0:00:09]} 5. cxd5 {[%emt 0:00:57]} cxd4 {[%emt 0:00:17]} 6. Qxd4 {[%emt 0:00:25]} exd5 {[%emt 0:00:07]} 7. e4 {[%emt 0:01:11] D41: Queen's Gambit Declined: Semi-Tarrasch with 5 cxd5.} dxe4 {[%emt 0:00:24]} 8. Qxd8+ {[%emt 0:00:06]} Kxd8 {[%emt 0:00:07]} 9. Ng5 {[%emt 0:00:06]} Be6 {[%emt 0:00:06]} 10. a3 {[%emt 0:00:55]} Nbd7 {[%emt 0:00:28]} 11. Bf4 {[%emt 0:00:39]} h6 {[%emt 0:00:17]} 12. Ngxe4 {[%emt 0:02:00]} Nxe4 {[%emt 0:00:09]} 13. Nxe4 {[%emt 0:00:03]} Rc8 $146 {[%emt 0:00:08]} ({Predecessor:} 13... f5 14. Ng3 g5 15. Bd2 Bg7 16. O-O-O Rc8+ 17. Kb1 f4 18. Ne4 Bf5 19. Bd3 Ne5 {0-1 Hakobyan,A (2617)-Niemann,H (2733) Julius Baer GenCup D3 L rapid 2024 (3.2)}) 14. Rd1 {[%emt 0:07:00]} f5 {[%emt 0:00:22]} 15. Nd2 {[%emt 0:10:31]} g5 {[%emt 0:03:05]} 16. Be3 {[%emt 0:00:38]} Bg7 {[%emt 0:00:23]} 17. Bb5 {[%emt 0:01:19]} a6 {[%emt 0:10:08]} 18. Bxd7 {[%emt 0:00:22]} Kxd7 {[%emt 0:00:10]} 19. f4 {[%emt 0:16:57]} Rc2 {[%emt 0:01:53]} 20. O-O {[%emt 0:10:32]} Kc8 {[%emt 0:03:59]} 21. Rc1 {[%emt 0:00:33]} Rxc1 {[%emt 0:00:40]} 22. Rxc1+ {[%emt 0:00:04]} Kb8 {[%emt 0:01:24]} 23. fxg5 {[%emt 0:05:08]} hxg5 {[%emt 0:01:18]} 24. Bxg5 {[%emt 0:00:10]} Bxb2 {[%emt 0:06:07]} 25. Re1 {[%emt 0:01:46]} Bd5 {[%emt 0:02:53]} 26. h4 {[%emt 0:00:16]} Bd4+ {[%emt 0:15:12]} 27. Kf1 {[%emt 0:00:10]} Bc6 {[%emt 0:08:33]} 28. g3 {[%emt 0:03:03]} Bc5 {[%emt 0:05:12]} 29. Bf4+ {[%emt 0:03:51]} Ka7 {[%emt 0:05:08]} 30. Re5 {[%emt 0:00:52]} Bb5+ {[%emt 0:04:07]} 31. Kg2 {[%emt 0:00:56]} Bc6+ {[%emt 0:00:07]} 32. Kf1 {[%emt 0:06:23]} Bb5+ {[%emt 0:04:42]} 33. Kg2 {[%emt 0:00:05]} Bc6+ {[%emt 0:05:13]} 34. Kh2 {[%emt 0:00:54]} Bd4 {[%emt 0:03:36]} 35. Be3 {[%emt 0:14:23]} Bxe3 {[%emt 0:03:33]} 36. Rxe3 {[%emt 0:00:04]} Kb6 {[%emt 0:05:46]} 37. Re5 {[%emt 0:01:59]} f4 {[%emt 0:10:25]} 38. gxf4 {[%emt 0:00:35]} Rxh4+ {[%emt 0:00:11]} 39. Kg3 {[%emt 0:00:04]} Rh8 {[%emt 0:01:27]} 40. f5 {[%emt 0:05:25]} Kc7 {[%emt 0:00:12]} 41. Nf3 {[%emt 0:14:33]} Kd6 {[%emt 0:05:06]} 42. Re6+ {[%emt 0:00:19]} Kc5 {[%emt 0:00:36]} 43. Ng5 {[%emt 0:04:11]} Bd7 {[%emt 0:03:54]} 44. Re7 {[%emt 0:02:12]} Bxf5 {[%emt 0:01:34]} 45. Re5+ {[%emt 0:00:03]} Kc4 {[%emt 0:00:09]} 46. Rxf5 {[%emt 0:00:03]} Rd8 {[%emt 0:00:19]} 47. Kf4 {[%emt 0:01:41]} Rd3 {[%emt 0:02:03]} 48. a4 {[%emt 0:02:16]} Ra3 {[%emt 0:00:21]} 49. a5 {[%emt 0:00:35]} Kb4 {[%emt 0:00:06]} 50. Rf7 {[%emt 0:00:09]} Rxa5 {[%emt 0:00:06]} 51. Rxb7+ {[%emt 0:00:02]} Kc4 {[%emt 0:00:14]} (51... Rb5 $1 $11 52. Ra7 a5) 52. Ne4 $14 {[%emt 0:00:56]} Rh5 {[%emt 0:00:10]} 53. Nf6 {[%emt 0:03:35]} Rh4+ {[%emt 0:00:08]} 54. Ke5 {[%emt 0:00:12]} Rh1 {[%emt 0:00:12]} 55. Rc7+ {[%emt 0:00:11]} Kd3 {[%emt 0:00:08]} 56. Rd7+ {[%emt 0:00:45]} Kc4 {[%emt 0:00:06]} 57. Rd4+ {[%emt 0:00:07]} Kb5 {[%emt 0:00:18]} 58. Rd2 {[%emt 0:01:09]} Kc4 {[%emt 0:00:15]} 59. Rc2+ {[%emt 0:00:13]} Kd3 {[%emt 0:00:10]} 60. Ra2 {[%emt 0:00:30]} Rg1 {[%emt 0:00:23]} 61. Ne4 {[%emt 0:00:22]} (61. Rxa6 Kc4 $16) 61... Rg8 {[%emt 0:00:17]} 62. Ra3+ {[%emt 0:00:49]} Ke2 {[%emt 0:00:07]} 63. Nf6 {[%emt 0:01:20]} (63. Rxa6 Re8+ 64. Kd4 Rd8+ 65. Kc4 Ke3 $16) 63... Rh8 {[%emt 0:00:11]} 64. Ng4 {[%emt 0:01:08]} a5 {[%emt 0:00:21]} 65. Ke4 {[%emt 0:00:12]} ({Of course not} 65. Rxa5 Rh5+ 66. Kd4 Rxa5 $11) 65... Kd2 {[%emt 0:00:11]} 66. Nf6 {[%emt 0:01:05]} a4 {[%emt 0:00:15]} 67. Kd4 {[%emt 0:00:21]} Kc2 {[%emt 0:00:24]} 68. Ne4 {[%emt 0:00:37]} Rd8+ {[%emt 0:00:42]} 69. Kc4 {[%emt 0:00:15]} Rc8+ {[%emt 0:00:04]} 70. Nc5 {[%emt 0:00:05]} Kd2 {[%emt 0:00:03]} 71. Rh3 {[%emt 0:01:00]} Ke2 {[%emt 0:00:17]} 72. Rg3 {[%emt 0:00:52]} Ra8 {[%emt 0:00:39]} 73. Ra3 {[%emt 0:00:21]} Rc8 {[%emt 0:00:36]} 74. Kd4 {[%emt 0:00:07]} Rd8+ {[%emt 0:00:05]} 75. Ke5 {[%emt 0:00:04]} Re8+ {[%emt 0:00:06]} 76. Ne6 {[%emt 0:00:03]} Kd2 {[%emt 0:00:08]} 77. Kd5 {[%emt 0:00:06]} Ra8 {[%emt 0:00:24]} 78. Kd4 {[%emt 0:00:11]} Kc2 {[%emt 0:00:49]} 79. Rc3+ {[%emt 0:03:14]} (79. Rf3 $14) 79... Kb2 $1 $11 {[%emt 0:01:16]} 80. Nc5 {[%emt 0:00:19]} Rd8+ {[%emt 0:00:19]} 81. Kc4 {[%emt 0:00:04]} Rc8 {[%emt 0:00:09]} 82. Rh3 {[%emt 0:00:21]} (82. Kb4 $5 Rb8+ $8 83. Kc4 $11) 82... a3 $1 {[%emt 0:00:10]} 83. Rb3+ {[%emt 0:00:58]} Ka2 $1 {[%emt 0:00:09]} 84. Rb5 {[%emt 0:01:13]} Ka1 {[%emt 0:00:13]} 85. Kc3 {[%emt 0:06:16]} (85. Ra5 $5) 85... a2 {[%emt 0:00:21]} 86. Kd2 {[%emt 0:00:38]} Rxc5 {[%emt 0:00:31]} 87. Rxc5 {[%emt 0:00:04]} Kb2 {[%emt 0:00:13]} 88. Rb5+ {[%emt 0:00:03]} Ka1 {[%emt 0:00:06]} 89. Ra5 {[%emt 0:00:14]} Kb2 {[%emt 0:00:05]} 1/2-1/2

[Event "BL 2024-25"]
[Site "Austria"]
[Date "2024.10.09"]
[Round "1.20"]
[White "Kraus, Tomas"]
[Black "Solodovnichenko, Yuri"]
[Result "1-0"]
[ECO "A13"]
[WhiteElo "2461"]
[BlackElo "2497"]
[Annotator "RC"]
[PlyCount "121"]
[EventDate "2024.08.28"]
[EventType "team-tourn"]
[EventCountry "AUT"]
[SourceTitle "playchess.com"]
[Source "ChessBase"]
[SourceQuality "1"]
[WhiteTeam "Mistelbach"]
[BlackTeam "Wien-St Veit"]
[TimeControl "40/5400+30:1800+30"]

1. Nf3 {[%emt 0:00:48]} d5 {[%emt 0:00:23]} 2. e3 {[%emt 0:02:04]} Nf6 {[%emt 0:00:20]} 3. c4 {[%emt 0:00:26]} e6 {[%emt 0:00:50]} 4. b3 {[%emt 0:01:05]} c5 {[%emt 0:00:33]} 5. Bb2 {[%emt 0:00:56]} Nc6 {[%emt 1:30:54]} 6. cxd5 {[%emt 0:02:23]} exd5 {[%emt 0:00:00]} 7. Be2 {[%emt 0:00:43]} Bd6 {[%emt 0:00:00]} 8. O-O {[%emt 0:03:19]} O-O {[%emt 0:00:00]} 9. d4 {[%emt 0:01:26]} cxd4 {[%emt 0:00:00]} 10. Nxd4 {[%emt 0:02:16]} Re8 {[%emt 0:00:00]} 11. Nd2 {[%emt 0:10:16]} Bd7 {[%emt 0:00:00]} 12. Rc1 {[%emt 0:05:17]} a6 {[%emt 0:00:00]} 13. Nxc6 {[%emt 0:04:10]} bxc6 {[%emt 0:00:00]} 14. Qc2 {[%emt 0:06:01]} a5 {[%emt 0:00:00]} 15. Bd3 {[%emt 0:03:01]} c5 {[%emt 0:00:00]} 16. Bf5 {[%emt 0:11:10]} Bb5 {[%emt 0:00:00]} 17. Rfd1 {[%emt 0:02:48]} g6 {[%emt 0:00:00]} 18. Bh3 {[%emt 0:05:19]} Be2 {[%emt 0:00:00]} 19. Re1 {[%emt 0:01:28]} Ba6 {[%emt 0:00:00]} 20. g3 {[%emt 0:03:43]} a4 {[%emt 0:00:00]} 21. bxa4 {[%emt 0:04:11]} Nd7 {[%emt 0:00:30]} 22. Bg2 {[%emt 0:03:48]} Bb7 {[%emt 0:00:11]} 23. Nc4 {[%emt 0:02:01]} Bc7 {[%emt 0:02:38]} 24. Red1 {[%emt 0:02:48]} Nb6 {[%emt 0:00:45]} 25. Nxb6 {[%emt 0:06:02]} Bxb6 {[%emt 0:00:01]} 26. Bxd5 {[%emt 0:02:44]} Bxd5 {[%emt 0:00:18]} 27. Qc3 {[%emt 0:00:16]} f6 {[%emt 0:00:45]} 28. Rxd5 {[%emt 0:00:04]} Qxd5 {[%emt 0:00:23]} 29. Qxf6 {[%emt 0:00:01]} Ra7 {[%emt 0:01:41]} 30. Qh8+ {[%emt 0:00:38]} Kf7 {[%emt 0:00:01]} 31. Qf6+ {[%emt 0:00:12]} Kg8 {[%emt 0:00:01]} 32. Qh8+ {[%emt 0:01:16]} Kf7 {[%emt 0:00:02]} 33. Qxh7+ {[%emt 0:00:27]} Kf8 {[%emt 0:00:01]} 34. Qh8+ {[%emt 0:00:54]} Ke7 {[%emt 0:01:44]} 35. Qf6+ {[%emt 0:01:45]} Kd7 {[%emt 0:00:01]} 36. Qxb6 {[%emt 0:00:45]} Rb7 {[%emt 0:01:55]} 37. Qxg6 {[%emt 0:03:00]} Re6 {[%emt 0:03:09]} 38. Qh7+ {[%emt 0:04:52]} Kc6 {[%emt 0:01:29]} 39. Qc2 {[%emt 0:00:11]} Rc7 {[%emt 0:00:54]} 40. a5 {[%emt 0:02:51]} Kb5 {[%emt 0:00:26]} 41. Bc3 {[%emt 0:05:14]} Ka6 {[%emt 0:01:27]} 42. Rd1 {[%emt 0:03:04]} Qf3 {[%emt 0:07:07]} 43. Rd8 {[%emt 0:03:07]} Ka7 {[%emt 0:03:48]} 44. Be1 {[%emt 0:04:53]} Qf6 {[%emt 0:04:34]} 45. Rd5 {[%emt 0:02:48]} Qa1 {[%emt 0:02:31]} 46. Kf1 {[%emt 0:01:34]} Rec6 {[%emt 0:04:24]} 47. Qc4 {[%emt 0:02:36]} Qh8 {[%emt 0:02:31]} 48. h4 {[%emt 0:00:32]} Qc8 {[%emt 0:01:05]} 49. Kg2 {[%emt 0:01:10]} Qb7 {[%emt 0:01:01]} 50. e4 {[%emt 0:01:18]} Qb1 {[%emt 0:00:15]} 51. Bd2 {[%emt 0:01:12]} Ka8 {[%emt 0:03:05]} 52. Bf4 {[%emt 0:03:32]} Rb7 {[%emt 0:00:29]} 53. Rd8+ {[%emt 0:02:17]} Ka7 {[%emt 0:00:02]} 54. Be3 {[%emt 0:01:02]} Rbc7 {[%emt 0:04:28]} 55. h5 {[%emt 0:01:18]} Qe1 {[%emt 0:00:39]} 56. Qb5 {[%emt 0:01:24]} Qc3 {[%emt 0:00:30]} 57. a4 {[%emt 0:00:37]} Qf6 {[%emt 0:00:10]} 58. Qb8+ {[%emt 0:01:26]} Ka6 {[%emt 0:00:01]} 59. Rf8 {[%emt 0:00:30]} Qe6 {[%emt 0:00:24]} 60. Re8 {[%emt 0:00:19]} Qf6 {[%emt 0:00:26]} 61. e5 {[%emt 0:00:35]} 1-0

[Event "BL 2024-25"]
[Site "Austria"]
[Date "2024.10.09"]
[Round "1.21"]
[White "Koellner, Ruben Gideon"]
[Black "Stalmach, Richard"]
[Result "0-1"]
[ECO "D01"]
[WhiteElo "2480"]
[BlackElo "2433"]
[Annotator "TA"]
[PlyCount "88"]
[EventDate "2024.08.28"]
[EventType "team-tourn"]
[EventCountry "AUT"]
[SourceTitle "playchess.com"]
[Source "ChessBase"]
[SourceQuality "1"]
[WhiteTeam "Wien-St Veit"]
[BlackTeam "Mistelbach"]
[TimeControl "40/5400+30:1800+30"]

{[%evp 9,88,-12,-12,-7,0,0,39,24,29,29,32,0,13,0,0,0,0,-16,-4,-63,-64,-63,-47,-41,-38,-45,-45,-47,-24,-16,0,-66,-18,-11,-12,-50,-49,-138,-120,-153,-149,-108,-56,-158,-152,-213,-198,-204,-198,-210,-170,-278,-293,-661,-652,-753,-93,-849,-887,-895,-916,-953,-843,-903,-944,-1748,-1534,-1921,-1786,-29979,-29980,-29981,-29982,-29975,-29976,-29976,-29977,-29976,-29978,-29970,-29970]} 1. d4 Nf6 2. Bg5 d5 3. e3 c5 4. Bxf6 gxf6 5. Nc3 e6 6. Qh5 cxd4 7. exd4 Bb4 8. Bd3 {[%cal Og1f3] Weiß steht etwas besser.} Nc6 9. Nf3 {[%cal Oe1g1]} (9. Bxh7 $2 Qe7 (9... Nxd4 10. O-O-O $17) 10. Nge2 Qf8 $19) 9... f5 10. O-O {Droht stark Rae1.} Qf6 $1 {[%cal Oc8d7]} 11. Rae1 {[%csl LRd5,LRf5]} Kf8 12. Re3 Qg6 13. Qh3 h5 14. Ne5 {Wehrt Qg4 ab} ({Besser ist} 14. Ne2 $11) 14... Nxe5 $15 15. dxe5 Qg4 {Es drohte Qh4. Und ...d4 würde nun gewinnen.} 16. Ne2 Bd7 17. Rg3 Qxh3 18. Rxh3 Ke7 19. Rh4 Ba5 20. Ng3 (20. Nf4 $11) 20... f6 (20... Bc7 $15 21. f4 Bb6+ 22. Kh1 Be3) 21. exf6+ $11 Kxf6 22. Nxh5+ Kf7 ({Viel schlechter ist} 22... Kg5 23. f4+ Kg6 (23... Kxh4 24. Nf6 $11) 24. Rg4+ Kh6 (24... Kxh5 25. Rg5+ Kh6 26. Rf3 Bb6+ 27. Kh1 Be8 28. Rh3+) 25. Rg3 $11) 23. f4 (23. Rd1 $15) 23... a6 {[%mdl 1024] Schwarz hat starke Kompensation.} 24. Rh3 {[#]} Bb6+ $1 25. Kh1 Bb5 ({Günstiger ist} 25... Rac8 $17 26. Re1 d4) 26. Rff3 (26. Bxb5 $1 $15 axb5 27. a3) 26... Rac8 $17 {Schwarz steht aktiver.} 27. Bxb5 (27. c3 $17 {ist eine bessere Verteidigung.}) 27... axb5 $19 28. c3 {[#]} b4 $1 {[%mdl 512] Weiss muss nun ...bxc3 beachten.} 29. Ng3 ({Vergiftet wäre} 29. Rfg3 $2 d4 (29... Rh7 $2 30. Rf3 $19) 30. Rg7+ (30. cxb4 $2 Rc1#) 30... Kf8 31. Rxb7 (31. cxb4 $2 Rc1#) 31... dxc3 32. bxc3 (32. Rxb6 {führt zum Matt.} cxb2 33. Kg1 b1=Q+ 34. Kf2 Rc2+ 35. Kf3 Qd1+ 36. Ke3 Qe2+ 37. Kd4 Qe4#) 32... bxc3 $19) 29... bxc3 30. Rxc3 {[#]} (30. bxc3 $142 Rxh3 31. gxh3) 30... d4 $1 31. Rf3 (31. Rxc8 Rxc8 32. Ne2) 31... Rc1+ 32. Rf1 Rxf1+ 33. Nxf1 {Ein Fehler, der zur Niederlage führt.} Rxh3 34. gxh3 {[%mdl 4096] Endspiel. KB-KN} Bc7 35. Kg2 Bxf4 36. Kf3 e5 37. a4 Bg5 38. Ng3 Ke6 {Zielt auf ...d3 ab.} 39. b4 d3 {Schwarz setzt Matt.} 40. a5 e4+ 41. Kf2 Bd2 42. h4 e3+ 43. Kf3 e2 44. Nxe2 dxe2 {Gewichteter Fehlerwert: Weiß=0.72/Schwarz=0.07 (makellos) .  Fehler:       	Weiß=7     	Schwarz=2     Ungenau:       	Weiß=1     	Schwarz=1     OK:         	Weiß=8     	Schwarz=9     Bester:       	Weiß=2     	Schwarz=1     Stark:        	---       	Schwarz=2     Brilliant:      	---       	Schwarz=1} 0-1

[Event "BL 2024-25"]
[Site "Austria"]
[Date "2024.10.09"]
[Round "1.22"]
[White "Haba, Petr"]
[Black "Antoniewski, Rafal"]
[Result "1/2-1/2"]
[ECO "A50"]
[WhiteElo "2422"]
[BlackElo "2443"]
[Annotator "TA"]
[PlyCount "64"]
[EventDate "2024.08.28"]
[EventType "team-tourn"]
[EventCountry "AUT"]
[SourceTitle "playchess.com"]
[Source "ChessBase"]
[SourceQuality "1"]
[WhiteTeam "Mistelbach"]
[BlackTeam "Wien-St Veit"]
[TimeControl "40/5400+30:1800+30"]

{[%evp 16,64,11,0,7,3,25,19,51,61,50,-6,0,0,0,0,0,0,0,0,0,0,0,0,0,0,0,0,0,-6,-10,-3,-4,-19,-11,-20,0,0,0,-7,0,0,0,-27,-27,-47,0,0,0,0,0]} 1. Nf3 {[%emt 0:00:14]} Nf6 {[%emt 0:00:37]} 2. c4 {[%emt 0:01:00]} b6 {[%emt 0:00:45]} 3. g3 {[%emt 0:00:38]} Bb7 {[%emt 0:00:08]} 4. Bg2 {[%emt 0:00:05]} g6 {[%emt 0:00:20]} 5. O-O {[%emt 0:05:05]} Bg7 {[%emt 0:00:35]} 6. Nc3 {[%emt 0:00:05]} O-O {[%emt 0:01:33]} 7. d4 {[%emt 0:02:55]} Ne4 {[%emt 0:01:34]} 8. Nxe4 {[%emt 0:10:52]} Bxe4 {[%emt 0:00:24]} 9. Be3 {[%emt 0:00:08]} d6 {[%emt 0:08:31]} 10. Qd2 {[%emt 0:03:21]} c5 {[%emt 0:06:32]} 11. Bh6 {[%emt 0:02:12]} Nc6 {[%emt 0:07:05]} 12. Bxg7 {[%emt 0:01:40]} Kxg7 {[%emt 0:00:07]} 13. e3 {[%emt 0:12:45]} (13. Qe3 $14 Bxf3 14. Qxf3 Nxd4 15. Qxa8 Qxa8 (15... Nxe2+ 16. Kh1 $11) 16. Bxa8 Rxa8 (16... Nxe2+ $2 {loses.} 17. Kg2 $18) 17. e3) 13... e6 {[%emt 0:11:38]} 14. Rfd1 {[%emt 0:17:48]} Qf6 {[%emt 0:04:45]} 15. Ne1 {[%emt 0:03:26]} Bxg2 {[%emt 0:01:10]} 16. Kxg2 {[%emt 0:00:04]} cxd4 {[%emt 0:16:49]} 17. exd4 {[%emt 0:00:11]} d5 {[%emt 0:00:39]} 18. cxd5 {[%emt 0:11:46]} exd5 {[%emt 0:00:42]} 19. Nc2 {[%emt 0:00:05]} Rfe8 {[%emt 0:04:34]} 20. Re1 {[%emt 0:00:42]} h5 {[%emt 0:05:39]} 21. h4 {[%emt 0:02:55]} Re4 {[%emt 0:04:25]} 22. f3 {[%emt 0:01:37]} Rxe1 {[%emt 0:01:19]} 23. Rxe1 {[%emt 0:00:10]} Rc8 {[%emt 0:01:07]} 24. Qg5 {[%emt 0:10:46]} Qxg5 {[%emt 0:09:59]} (24... Nxd4 $2 {perishes.} 25. Qxf6+ Kxf6 26. Nxd4 $18) 25. hxg5 $11 {[%emt 0:00:04][%mdl 4096] Endgame. KRN-KRN} Nd8 {[%emt 0:00:27]} 26. Re2 {[%emt 0:03:42]} Ne6 {[%emt 0:00:06]} 27. f4 {[%emt 0:00:04]} Kf8 {[%emt 0:04:28]} 28. Ne3 {[%emt 0:04:29]} Rd8 {[%emt 0:01:29]} 29. Rd2 {[%emt 0:02:00]} Ke7 {[%emt 0:00:48]} 30. Nd1 {[%emt 0:01:52]} f6 {[%emt 0:01:29]} (30... Rd7 $15 {is more appropriate.}) 31. gxf6+ {[%emt 0:00:26]} Kxf6 {[%emt 0:00:01]} 32. Nc3 {[%emt 0:01:06]} Rd7 {[%emt 0:01:33] Weighted Error Value: White=0.08 (flawless) /Black=0.06 (flawless) .  Mistake:       	White=1     	Black=1      Inaccurate:     	White=1     	Black=1      OK:         	White=9     	Black=8      Best:        	White=2     	---} 1/2-1/2

[Event "BL 2024-25"]
[Site "Austria"]
[Date "2024.10.09"]
[Round "1.23"]
[White "Kuegel, Tobias"]
[Black "Bures, Jaroslav"]
[Result "1/2-1/2"]
[ECO "B12"]
[WhiteElo "2428"]
[BlackElo "2407"]
[Annotator "RC"]
[PlyCount "116"]
[EventDate "2024.08.28"]
[EventType "team-tourn"]
[EventCountry "AUT"]
[SourceTitle "playchess.com"]
[Source "ChessBase"]
[SourceQuality "1"]
[WhiteTeam "Wien-St Veit"]
[BlackTeam "Mistelbach"]
[TimeControl "40/5400+30:1800+30"]

1. e4 {[%emt 0:00:02]} c6 {[%emt 0:00:19]} 2. d4 {[%emt 0:02:22]} d5 {[%emt 0:00:04]} 3. f3 {[%emt 0:00:08]} e6 {[%emt 0:00:24]} 4. Bd3 {[%emt 0:02:27]} dxe4 {[%emt 0:01:46]} 5. fxe4 {[%emt 0:00:24]} Qxd4 {[%emt 0:00:08]} 6. Nf3 {[%emt 0:00:08]} Qb6 {[%emt 0:04:06]} 7. e5 {[%emt 0:00:20]} Nd7 {[%emt 0:04:12]} 8. Qe2 {[%emt 0:01:39]} Nh6 {[%emt 0:09:55]} 9. Nbd2 {[%emt 0:05:14]} Qc7 {[%emt 0:10:49]} 10. Nc4 {[%emt 0:23:38]} b5 {[%emt 0:00:39]} 11. Nd6+ {[%emt 0:04:42]} Bxd6 {[%emt 0:00:04]} 12. exd6 {[%emt 0:00:16]} Qxd6 {[%emt 0:00:01]} 13. Bxh6 {[%emt 0:03:00]} gxh6 {[%emt 0:00:02]} 14. O-O-O {[%emt 0:03:34]} Bb7 {[%emt 0:09:41]} 15. Kb1 {[%emt 0:14:13]} Qe7 {[%emt 0:14:00]} 16. Qe3 {[%emt 0:02:32]} a6 {[%emt 0:00:56]} 17. Qxh6 {[%emt 0:05:00]} O-O-O {[%emt 0:01:40]} 18. Rhf1 {[%emt 0:00:36]} c5 {[%emt 0:03:59]} 19. Qe3 {[%emt 0:05:03]} Nf6 {[%emt 0:09:13]} 20. Ng5 {[%emt 0:06:24]} Bxg2 {[%emt 0:05:39]} 21. Rg1 {[%emt 0:05:51]} Bd5 {[%emt 0:02:13]} 22. Rdf1 {[%emt 0:02:44]} c4 {[%emt 0:04:14]} 23. Be2 h6 {[%emt 0:02:52]} 24. Nf3 {[%emt 0:08:52]} Nd7 {[%emt 0:03:55]} 25. Rg7 {[%emt 0:02:17]} Qf6 {[%emt 0:00:42]} 26. Rgg1 {[%emt 0:00:47]} Qe7 {[%emt 0:03:28]} 27. Rg7 {[%emt 0:00:02]} Qf8 {[%emt 0:03:39]} 28. Rfg1 {[%emt 0:00:50]} f5 {[%emt 0:01:01]} 29. Ne5 {[%emt 0:01:13]} Nxe5 {[%emt 0:00:58]} 30. Qxe5 {[%emt 0:00:06]} Qd6 {[%emt 0:00:38]} 31. Qd4 {[%emt 0:00:55]} Bb7 {[%emt 0:01:14]} 32. Qa7 {[%emt 0:00:36]} Rd7 {[%emt 0:00:37]} 33. R7g6 {[%emt 0:00:31]} f4 {[%emt 0:00:54]} 34. Bg4 {[%emt 0:00:24]} Bd5 {[%emt 0:02:02]} 35. Qd4 {[%emt 0:00:28]} Rf8 {[%emt 0:00:26]} 36. Rxh6 {[%emt 0:00:38]} f3 {[%emt 0:00:11]} 37. Rf1 {[%emt 0:00:24]} Qf4 {[%emt 0:01:27]} 38. Qxf4 {[%emt 0:00:37]} Rxf4 {[%emt 0:00:01]} 39. Bxe6 {[%emt 0:00:29]} Bxe6 {[%emt 0:00:48]} 40. Rxe6 {[%emt 0:00:03]} Rh7 {[%emt 0:00:57]} 41. Rf2 {[%emt 0:06:18]} Rg7 {[%emt 0:08:47]} 42. Re1 {[%emt 0:01:13]} b4 {[%emt 0:03:40]} 43. Ref1 {[%emt 0:10:38]} Rg2 {[%emt 0:01:54]} 44. c3 {[%emt 0:02:21]} b3 {[%emt 0:02:00]} 45. axb3 {[%emt 0:07:38]} cxb3 {[%emt 0:00:01]} 46. Kc1 {[%emt 0:00:50]} a5 {[%emt 0:00:41]} 47. Rxf3 {[%emt 0:03:00]} Rc2+ {[%emt 0:00:44]} 48. Kb1 {[%emt 0:00:13]} Rxf3 {[%emt 0:00:07]} 49. Rxf3 {[%emt 0:00:06]} Rxh2 {[%emt 0:00:02]} 50. Rf1 {[%emt 0:01:01]} Kd7 {[%emt 0:01:22]} 51. Rg1 {[%emt 0:00:51]} a4 {[%emt 0:00:34]} 52. Kc1 {[%emt 0:00:29]} Kc6 {[%emt 0:02:13]} 53. Rg6+ {[%emt 0:01:05]} Kb5 {[%emt 0:00:21]} 54. Rg1 {[%emt 0:00:16]} Kc4 {[%emt 0:00:26]} 55. Kb1 {[%emt 0:00:29]} Kd3 {[%emt 0:01:10]} 56. Rd1+ {[%emt 0:00:37]} Ke3 {[%emt 0:01:04]} 57. Kc1 {[%emt 0:00:40]} Rc2+ {[%emt 0:05:59]} 58. Kb1 {[%emt 0:00:03]} Rh2 {[%emt 0:00:09]} 1/2-1/2